[Event "*** Titled Tuesday Blitz"]
[Site "Chess.com"]
[Date "2021.02.02"]
[Round "2"]
[White "VladimirPotkin"]
[Black "awesomevishesh"]
[Result "0-1"]
[WhiteElo "2658"]
[BlackElo "2492"]
[TimeControl "180+1"]
[EndTime "10:20:57 PST"]
[Termination "awesomevishesh won by checkmate"]

1. Nf3 {[%clk 0:03:00.9]} 1... Nf6 {[%clk 0:02:58.7]} 2. c4 {[%clk 0:03:00.6]}
2... g6 {[%clk 0:02:53.6]} 3. Nc3 {[%clk 0:03:00.4]} 3... Bg7 {[%clk 0:02:53.6]}
4. g3 {[%clk 0:02:57.4]} 4... O-O {[%clk 0:02:52.9]} 5. Bg2 {[%clk 0:02:57.4]}
5... d6 {[%clk 0:02:52.7]} 6. d4 {[%clk 0:02:56.6]} 6... c6 {[%clk 0:02:52]} 7.
O-O {[%clk 0:02:56.8]} 7... Bf5 {[%clk 0:02:51.7]} 8. Nh4 {[%clk 0:02:53.2]}
8... Be6 {[%clk 0:02:51.1]} 9. d5 {[%clk 0:02:43.6]} 9... cxd5 {[%clk
0:02:50.8]} 10. cxd5 {[%clk 0:02:42.2]} 10... Bd7 {[%clk 0:02:50.4]} 11. Nf3
{[%clk 0:02:34.2]} 11... a5 {[%clk 0:02:50.1]} 12. Nd4 {[%clk 0:02:29.7]} 12...
Na6 {[%clk 0:02:47.6]} 13. Bf4 {[%clk 0:02:24]} 13... Rc8 {[%clk 0:02:19.4]} 14.
Rc1 {[%clk 0:02:23.3]} 14... Qb6 {[%clk 0:02:18.1]} 15. Qd2 {[%clk 0:02:19.1]}
15... Ng4 {[%clk 0:02:10.5]} 16. e3 {[%clk 0:02:11.2]} 16... Ne5 {[%clk
0:02:05.2]} 17. b3 {[%clk 0:02:09.7]} 17... Nc5 {[%clk 0:01:59.4]} 18. Rc2
{[%clk 0:02:00.5]} 18... Ned3 {[%clk 0:01:54.9]} 19. Rd1 {[%clk 0:01:48.1]}
19... Nb4 {[%clk 0:01:47.6]} 20. Rcc1 {[%clk 0:01:43.5]} 20... Ncd3 {[%clk
0:01:40.1]} 21. Rb1 {[%clk 0:01:40.3]} 21... Bxd4 {[%clk 0:01:27.6]} 22. exd4
{[%clk 0:01:39.1]} 22... Qxd4 {[%clk 0:01:21.6]} 23. Ne2 {[%clk 0:01:35.7]}
23... Qxf2+ {[%clk 0:01:20.5]} 24. Kh1 {[%clk 0:01:33.5]} 24... Rc2 {[%clk
0:01:19.7]} 25. Qe3 {[%clk 0:00:53.9]} 25... Rxe2 {[%clk 0:01:16.1]} 26. Qf3
{[%clk 0:00:53.7]} 26... Qxf3 {[%clk 0:00:42.9]} 27. Bxf3 {[%clk 0:00:54.6]}
27... Nf2+ {[%clk 0:00:37.7]} 28. Kg2 {[%clk 0:00:51.5]} 28... Nxd1+ {[%clk
0:00:33.7]} 29. Bxe2 {[%clk 0:00:51.5]} 29... Nc3 {[%clk 0:00:33.6]} 30. Re1
{[%clk 0:00:51.6]} 30... Nc2 {[%clk 0:00:29]} 31. Rc1 {[%clk 0:00:49.6]} 31...
Nxe2 {[%clk 0:00:28.3]} 32. Rxc2 {[%clk 0:00:50.1]} 32... Nxf4+ {[%clk
0:00:28.1]} 33. gxf4 {[%clk 0:00:51]} 33... Rc8 {[%clk 0:00:27.9]} 34. Re2
{[%clk 0:00:51.6]} 34... Kf8 {[%clk 0:00:27.5]} 35. Kf2 {[%clk 0:00:52.5]} 35...
Bf5 {[%clk 0:00:26.2]} 36. Ke3 {[%clk 0:00:49.4]} 36... b5 {[%clk 0:00:25.9]}
37. Re1 {[%clk 0:00:50.3]} 37... b4 {[%clk 0:00:24.4]} 38. h4 {[%clk 0:00:50.1]}
38... h5 {[%clk 0:00:24]} 39. Kd4 {[%clk 0:00:49.9]} 39... Rc2 {[%clk
0:00:21.7]} 40. Ra1 {[%clk 0:00:48]} 40... e6 {[%clk 0:00:20.9]} 41. dxe6 {[%clk
0:00:47.6]} 41... fxe6 {[%clk 0:00:20.8]} 42. a3 {[%clk 0:00:47.3]} 42... bxa3
{[%clk 0:00:18.8]} 43. Rxa3 {[%clk 0:00:47.2]} 43... Rc5 {[%clk 0:00:18.5]} 44.
Ra4 {[%clk 0:00:45.3]} 44... Ke7 {[%clk 0:00:18.2]} 45. b4 {[%clk 0:00:45.4]}
45... axb4 {[%clk 0:00:17]} 46. Rxb4 {[%clk 0:00:46.3]} 46... Kf6 {[%clk
0:00:15.9]} 47. Rb8 {[%clk 0:00:46]} 47... Rd5+ {[%clk 0:00:15.4]} 48. Kc4
{[%clk 0:00:46.3]} 48... Bd3+ {[%clk 0:00:14.8]} 49. Kc3 {[%clk 0:00:46.1]}
49... Kf5 {[%clk 0:00:14.7]} 50. Rf8+ {[%clk 0:00:47]} 50... Kg4 {[%clk
0:00:14.1]} 51. Rf6 {[%clk 0:00:47.9]} 51... Bf5 {[%clk 0:00:13.3]} 52. Rf8
{[%clk 0:00:48]} 52... Kxf4 {[%clk 0:00:12.7]} 53. Kc4 {[%clk 0:00:47.7]} 53...
Kg4 {[%clk 0:00:12.3]} 54. Ra8 {[%clk 0:00:47.3]} 54... Kxh4 {[%clk 0:00:12]}
55. Ra1 {[%clk 0:00:47.9]} 55... Kg5 {[%clk 0:00:11.7]} 56. Rg1+ {[%clk
0:00:48.5]} 56... Kf6 {[%clk 0:00:11.5]} 57. Rf1 {[%clk 0:00:49.4]} 57... h4
{[%clk 0:00:11.1]} 58. Rh1 {[%clk 0:00:50]} 58... g5 {[%clk 0:00:10.9]} 59. Rh2
{[%clk 0:00:50.9]} 59... h3 {[%clk 0:00:10.3]} 60. Rh1 {[%clk 0:00:50.2]} 60...
g4 {[%clk 0:00:10.6]} 61. Ra1 {[%clk 0:00:48.3]} 61... h2 {[%clk 0:00:10.4]} 62.
Ra8 {[%clk 0:00:49.2]} 62... g3 {[%clk 0:00:08.8]} 63. Rf8+ {[%clk 0:00:50.1]}
63... Ke5 {[%clk 0:00:08.2]} 64. Rh8 {[%clk 0:00:49.3]} 64... g2 {[%clk
0:00:08.1]} 65. Rxh2 {[%clk 0:00:49.6]} 65... g1=Q {[%clk 0:00:08]} 66. Re2+
{[%clk 0:00:50.5]} 66... Kf6 {[%clk 0:00:07.5]} 67. Rb2 {[%clk 0:00:44.3]} 67...
Qd4+ {[%clk 0:00:07.4]} 68. Kb3 {[%clk 0:00:45.2]} 68... Rb5+ {[%clk 0:00:07.3]}
69. Ka3 {[%clk 0:00:44.5]} 69... Qxb2+ {[%clk 0:00:06.8]} 70. Ka4 {[%clk
0:00:45]} 70... Qb4# {[%clk 0:00:07.5]} 0-1

[Event "*** Titled Tuesday Blitz"]
[Site "Chess.com"]
[Date "2021.02.02"]
[Round "2"]
[White "Mazanchenko_Dmitry"]
[Black "Vusatiuk_Vladimir"]
[Result "0-1"]
[WhiteElo "2104"]
[BlackElo "2402"]
[TimeControl "180+1"]
[EndTime "10:20:58 PST"]
[Termination "Vusatiuk_Vladimir won on time"]

1. e4 {[%clk 0:03:00.9]} 1... c5 {[%clk 0:03:00.1]} 2. Ne2 {[%clk 0:03:00]} 2...
e6 {[%clk 0:03:00]} 3. Nbc3 {[%clk 0:03:00.9]} 3... d6 {[%clk 0:02:56.6]} 4. d4
{[%clk 0:02:59.7]} 4... cxd4 {[%clk 0:02:57.5]} 5. Nxd4 {[%clk 0:03:00.5]} 5...
Nf6 {[%clk 0:02:57.9]} 6. Be3 {[%clk 0:02:57.6]} 6... a6 {[%clk 0:02:56.6]} 7.
f3 {[%clk 0:02:57.1]} 7... b5 {[%clk 0:02:56.4]} 8. Qd2 {[%clk 0:02:56.5]} 8...
Bb7 {[%clk 0:02:55.9]} 9. O-O-O {[%clk 0:02:55.4]} 9... Qc7 {[%clk 0:02:55.6]}
10. Bxb5+ {[%clk 0:02:50.2]} 10... axb5 {[%clk 0:02:54.8]} 11. Ndxb5 {[%clk
0:02:51.1]} 11... Qd7 {[%clk 0:02:39.9]} 12. Bb6 {[%clk 0:02:34.8]} 12... Na6
{[%clk 0:02:14]} 13. Nxd6+ {[%clk 0:02:33.3]} 13... Bxd6 {[%clk 0:02:13.8]} 14.
Qxd6 {[%clk 0:02:34.2]} 14... Qxd6 {[%clk 0:02:14.7]} 15. Rxd6 {[%clk
0:02:34.2]} 15... Nd7 {[%clk 0:01:59.3]} 16. Rhd1 {[%clk 0:02:24.5]} 16... Nxb6
{[%clk 0:01:49.7]} 17. Rxb6 {[%clk 0:02:25.4]} 17... Bc8 {[%clk 0:01:45.9]} 18.
e5 {[%clk 0:02:23]} 18... O-O {[%clk 0:01:44]} 19. a3 {[%clk 0:02:18.2]} 19...
Rb8 {[%clk 0:01:41.2]} 20. Rxb8 {[%clk 0:02:15.3]} 20... Nxb8 {[%clk 0:01:42.1]}
21. f4 {[%clk 0:02:11]} 21... Bb7 {[%clk 0:01:42]} 22. g3 {[%clk 0:02:10.2]}
22... Rc8 {[%clk 0:01:41.6]} 23. Nb5 {[%clk 0:02:05.8]} 23... Be4 {[%clk
0:01:39.2]} 24. c3 {[%clk 0:01:57.6]} 24... Bd5 {[%clk 0:01:39]} 25. Nd6 {[%clk
0:01:50.4]} 25... Rc6 {[%clk 0:01:37.4]} 26. Kb1 {[%clk 0:01:39.1]} 26... Kf8
{[%clk 0:01:36.7]} 27. c4 {[%clk 0:01:33.4]} 27... Bf3 {[%clk 0:01:31]} 28. Rd3
{[%clk 0:01:26.7]} 28... Be2 {[%clk 0:01:30.5]} 29. Rd2 {[%clk 0:01:25.5]} 29...
Bf1 {[%clk 0:01:30.3]} 30. b4 {[%clk 0:01:09.8]} 30... Ke7 {[%clk 0:01:30.2]}
31. c5 {[%clk 0:01:08.5]} 31... Nd7 {[%clk 0:01:23.7]} 32. Kb2 {[%clk
0:01:06.3]} 32... f6 {[%clk 0:01:23.8]} 33. exf6+ {[%clk 0:01:01.6]} 33... gxf6
{[%clk 0:01:24.7]} 34. Rc2 {[%clk 0:00:43]} 34... Nb6 {[%clk 0:01:11]} 35. Nf5+
{[%clk 0:00:32.9]} 35... exf5 {[%clk 0:01:08.2]} 36. cxb6 {[%clk 0:00:32.8]}
36... Rxb6 {[%clk 0:00:59.4]} 37. Rc7+ {[%clk 0:00:31.2]} 37... Ke6 {[%clk
0:00:59]} 38. Rxh7 {[%clk 0:00:32]} 38... Rd6 {[%clk 0:00:58.9]} 39. Kc3 {[%clk
0:00:30.2]} 39... Bb5 {[%clk 0:00:57.9]} 40. Rb7 {[%clk 0:00:23.6]} 40... Rd3+
{[%clk 0:00:51.6]} 41. Kc2 {[%clk 0:00:20.3]} 41... Rd5 {[%clk 0:00:52.2]} 42.
h4 {[%clk 0:00:17.6]} 42... Ba4+ {[%clk 0:00:48.3]} 43. Kc3 {[%clk 0:00:17]}
43... Rd1 {[%clk 0:00:47.3]} 44. Kc4 {[%clk 0:00:13.6]} 44... Rc1+ {[%clk
0:00:45.3]} 45. Kd4 {[%clk 0:00:12.9]} 45... Rg1 {[%clk 0:00:44.4]} 46. Rb6+
{[%clk 0:00:11.9]} 46... Kf7 {[%clk 0:00:44.8]} 47. Rb7+ {[%clk 0:00:10.9]}
47... Kg6 {[%clk 0:00:45.3]} 48. Ra7 {[%clk 0:00:10]} 48... Bb3 {[%clk
0:00:44.1]} 49. b5 {[%clk 0:00:09.1]} 49... Rxg3 {[%clk 0:00:43.4]} 50. b6
{[%clk 0:00:09.1]} 50... Be6 {[%clk 0:00:38.6]} 51. b7 {[%clk 0:00:07.3]} 51...
Rb3 {[%clk 0:00:38.7]} 52. a4 {[%clk 0:00:07.2]} 52... Kh5 {[%clk 0:00:35]} 53.
a5 {[%clk 0:00:06.1]} 53... Bd7 {[%clk 0:00:29.6]} 54. a6 {[%clk 0:00:05.4]}
54... Bc6 {[%clk 0:00:30.1]} 55. Ra8 {[%clk 0:00:04.1]} 55... Bxb7 {[%clk
0:00:30.4]} 56. axb7 {[%clk 0:00:03.9]} 56... Rxb7 {[%clk 0:00:31.3]} 57. Rf8
{[%clk 0:00:03.7]} 57... Rb6 {[%clk 0:00:30.8]} 58. Ke3 {[%clk 0:00:02.4]} 58...
Kxh4 {[%clk 0:00:31.2]} 59. Kf3 {[%clk 0:00:02.1]} 59... Rb3+ {[%clk 0:00:31.2]}
60. Ke2 {[%clk 0:00:01.8]} 60... Kg4 {[%clk 0:00:32.1]} 61. Rxf6 {[%clk
0:00:01.1]} 61... Kxf4 {[%clk 0:00:33]} 62. Rg6 {[%clk 0:00:01.4]} 62... Rb2+
{[%clk 0:00:33.9]} 63. Kf1 {[%clk 0:00:01.6]} 63... Rb8 {[%clk 0:00:34.8]} 64.
Rg8 {[%clk 0:00:01.8]} 64... Rxg8 {[%clk 0:00:34.4]} 65. Kf2 {[%clk 0:00:02.6]}
65... Ra8 {[%clk 0:00:35]} 0-1

[Event "*** Titled Tuesday Blitz"]
[Site "Chess.com"]
[Date "2021.02.02"]
[Round "2"]
[White "anon219"]
[Black "sorrm8thatscheckm8"]
[Result "1-0"]
[WhiteElo "2906"]
[BlackElo "2574"]
[TimeControl "180+1"]
[EndTime "10:20:59 PST"]
[Termination "anon219 won by resignation"]

1. e4 {[%clk 0:03:00.9]} 1... c5 {[%clk 0:02:58.7]} 2. Nf3 {[%clk 0:03:01]} 2...
Nc6 {[%clk 0:02:58.7]} 3. Bb5 {[%clk 0:03:01.1]} 3... e6 {[%clk 0:02:58.5]} 4.
O-O {[%clk 0:02:59.7]} 4... Nge7 {[%clk 0:02:56.7]} 5. Re1 {[%clk 0:03:00.1]}
5... a6 {[%clk 0:02:53.6]} 6. Bf1 {[%clk 0:03:00.4]} 6... d5 {[%clk 0:02:53.5]}
7. exd5 {[%clk 0:03:00.5]} 7... Nxd5 {[%clk 0:02:54.4]} 8. d4 {[%clk 0:03:00.9]}
8... cxd4 {[%clk 0:02:52.1]} 9. Nxd4 {[%clk 0:03:01.8]} 9... Bc5 {[%clk
0:02:46.9]} 10. Nxc6 {[%clk 0:03:01.6]} 10... bxc6 {[%clk 0:02:47.8]} 11. Nd2
{[%clk 0:03:01.8]} 11... O-O {[%clk 0:02:44.9]} 12. Nc4 {[%clk 0:02:47]} 12...
a5 {[%clk 0:02:39.5]} 13. Ne5 {[%clk 0:02:37.2]} 13... Bb7 {[%clk 0:02:32.2]}
14. Qf3 {[%clk 0:02:32.4]} 14... f6 {[%clk 0:02:21.9]} 15. Nd3 {[%clk
0:02:28.7]} 15... Bb6 {[%clk 0:02:05.9]} 16. Rxe6 {[%clk 0:02:22.6]} 16... Qd7
{[%clk 0:02:04]} 17. Re1 {[%clk 0:02:05.8]} 17... c5 {[%clk 0:02:01]} 18. Nf4
{[%clk 0:02:04.4]} 18... Rfe8 {[%clk 0:01:32.3]} 19. Rd1 {[%clk 0:01:50.9]}
19... Nxf4 {[%clk 0:01:31.6]} 20. Rxd7 {[%clk 0:01:47.3]} 20... Bxf3 {[%clk
0:01:30.4]} 21. Bxf4 {[%clk 0:01:46.2]} 21... Bc6 {[%clk 0:01:22.7]} 22. Rd6
{[%clk 0:01:45.7]} 22... Bc7 {[%clk 0:01:19.8]} 23. Rxc6 {[%clk 0:01:30.4]}
23... Bxf4 {[%clk 0:01:19.9]} 24. Rxc5 {[%clk 0:01:30.9]} 24... Be5 {[%clk
0:01:16.1]} 25. c3 {[%clk 0:01:27]} 25... Rec8 {[%clk 0:01:15.7]} 26. Rxc8+
{[%clk 0:01:21.1]} 26... Rxc8 {[%clk 0:01:16.6]} 27. a4 {[%clk 0:01:19.4]} 27...
Kf7 {[%clk 0:01:11.4]} 28. Rd1 {[%clk 0:01:17.2]} 28... Ke6 {[%clk 0:01:07.1]}
29. g3 {[%clk 0:01:16]} 29... h5 {[%clk 0:01:04.2]} 30. Bh3+ {[%clk 0:01:13.2]}
30... f5 {[%clk 0:01:04.4]} 31. Bf1 {[%clk 0:01:13.8]} 31... g5 {[%clk
0:01:02.5]} 32. Bb5 {[%clk 0:01:12.9]} 32... Rb8 {[%clk 0:00:59]} 33. Kg2 {[%clk
0:01:08.8]} 33... h4 {[%clk 0:00:57.2]} 34. Re1 {[%clk 0:01:06.5]} 34... Kf6
{[%clk 0:00:53.4]} 35. Rd1 {[%clk 0:01:06.9]} 35... Ke6 {[%clk 0:00:52.1]} 36.
Rd3 {[%clk 0:01:04.2]} 36... hxg3 {[%clk 0:00:47.6]} 37. hxg3 {[%clk 0:00:58.9]}
37... g4 {[%clk 0:00:47.9]} 38. b4 {[%clk 0:00:59.1]} 38... axb4 {[%clk
0:00:44.9]} 39. cxb4 {[%clk 0:00:59.2]} 39... Ke7 {[%clk 0:00:36.1]} 40. Rd5
{[%clk 0:00:45]} 40... Ke6 {[%clk 0:00:33.8]} 41. Rd3 {[%clk 0:00:24]} 41... Ke7
{[%clk 0:00:34]} 42. Rb3 {[%clk 0:00:22.9]} 42... Bd6 {[%clk 0:00:32.2]} 43. Kf1
{[%clk 0:00:22.2]} 43... Kf6 {[%clk 0:00:31.5]} 44. Ke2 {[%clk 0:00:20.4]} 44...
Ke5 {[%clk 0:00:32.2]} 45. Kd3 {[%clk 0:00:18.5]} 45... Rd8 {[%clk 0:00:29.6]}
46. Kc2 {[%clk 0:00:16.4]} 46... Rc8+ {[%clk 0:00:28.7]} 47. Rc3 {[%clk
0:00:16.5]} 47... Rxc3+ {[%clk 0:00:20.4]} 48. Kxc3 {[%clk 0:00:17.4]} 48... f4
{[%clk 0:00:20.8]} 49. gxf4+ {[%clk 0:00:14.1]} 49... Kxf4 {[%clk 0:00:20.7]}
50. Be2 {[%clk 0:00:13.7]} 50... Bc7 {[%clk 0:00:17.5]} 51. a5 {[%clk
0:00:12.8]} 51... Ke4 {[%clk 0:00:16.2]} 52. Bxg4 {[%clk 0:00:11]} 52... Kd5
{[%clk 0:00:15.3]} 53. Bf3+ {[%clk 0:00:11.2]} 53... Kd6 {[%clk 0:00:14.5]} 54.
Kc4 {[%clk 0:00:11.5]} 54... Kd7 {[%clk 0:00:13.9]} 55. Bd5 {[%clk 0:00:11.7]}
55... Kc8 {[%clk 0:00:14]} 56. Kb5 {[%clk 0:00:11.7]} 56... Kb8 {[%clk
0:00:12.9]} 57. Ka6 {[%clk 0:00:12.3]} 57... Bf4 {[%clk 0:00:11.3]} 58. b5
{[%clk 0:00:12.7]} 58... Kc7 {[%clk 0:00:10.1]} 59. f3 {[%clk 0:00:13.6]} 59...
Kb8 {[%clk 0:00:09.9]} 60. Be4 {[%clk 0:00:14.5]} 60... Be5 {[%clk 0:00:09.5]}
61. b6 {[%clk 0:00:15.4]} 61... Bf4 {[%clk 0:00:09.8]} 62. Kb5 {[%clk 0:00:16]}
62... Be3 {[%clk 0:00:09.5]} 63. a6 {[%clk 0:00:16.6]} 1-0

[Event "*** Titled Tuesday Blitz"]
[Site "Chess.com"]
[Date "2021.02.02"]
[Round "2"]
[White "davidkalashian"]
[Black "Genghis_K"]
[Result "0-1"]
[WhiteElo "2584"]
[BlackElo "2927"]
[TimeControl "180+1"]
[EndTime "10:21:03 PST"]
[Termination "Genghis_K won by resignation"]

1. d4 {[%clk 0:03:00]} 1... Nf6 {[%clk 0:02:59.9]} 2. c4 {[%clk 0:02:57.4]} 2...
g6 {[%clk 0:03:00.3]} 3. Nc3 {[%clk 0:02:57.2]} 3... Bg7 {[%clk 0:03:00.9]} 4.
e4 {[%clk 0:02:57.6]} 4... d6 {[%clk 0:03:01.5]} 5. Be2 {[%clk 0:02:58]} 5...
O-O {[%clk 0:03:01.8]} 6. Bg5 {[%clk 0:02:58.5]} 6... c5 {[%clk 0:02:55]} 7. d5
{[%clk 0:02:53.3]} 7... e6 {[%clk 0:02:53.3]} 8. Nf3 {[%clk 0:02:51.6]} 8...
exd5 {[%clk 0:02:52.9]} 9. exd5 {[%clk 0:02:52.5]} 9... Bf5 {[%clk 0:02:44.3]}
10. O-O {[%clk 0:02:51.9]} 10... Qb6 {[%clk 0:02:41.7]} 11. Qd2 {[%clk
0:02:44.9]} 11... Ne4 {[%clk 0:02:39.4]} 12. Nxe4 {[%clk 0:02:44.2]} 12... Bxe4
{[%clk 0:02:40]} 13. Qf4 {[%clk 0:02:34.5]} 13... Bxf3 {[%clk 0:02:26.2]} 14.
Bxf3 {[%clk 0:02:30.8]} 14... Nd7 {[%clk 0:02:25.2]} 15. Bh6 {[%clk 0:02:11.5]}
15... Bxh6 {[%clk 0:01:56.5]} 16. Qxh6 {[%clk 0:02:11.2]} 16... Qxb2 {[%clk
0:01:56.9]} 17. Qf4 {[%clk 0:02:11.6]} 17... Qe5 {[%clk 0:01:50.7]} 18. Qd2
{[%clk 0:02:10.8]} 18... Qf6 {[%clk 0:01:49.4]} 19. Rab1 {[%clk 0:02:04.3]}
19... b6 {[%clk 0:01:48.8]} 20. a4 {[%clk 0:02:03.6]} 20... Rfe8 {[%clk
0:01:46.5]} 21. a5 {[%clk 0:02:01.2]} 21... Kg7 {[%clk 0:01:44.3]} 22. Bg4
{[%clk 0:01:54.6]} 22... Ne5 {[%clk 0:01:42.9]} 23. Be2 {[%clk 0:01:54.9]} 23...
Rab8 {[%clk 0:01:07.5]} 24. f4 {[%clk 0:01:41.8]} 24... Nd7 {[%clk 0:01:06.5]}
25. Bg4 {[%clk 0:01:42.3]} 25... Nf8 {[%clk 0:01:04.4]} 26. axb6 {[%clk
0:01:21]} 26... Rxb6 {[%clk 0:01:02]} 27. Rxb6 {[%clk 0:01:18.3]} 27... axb6
{[%clk 0:01:02.6]} 28. Rb1 {[%clk 0:01:19.2]} 28... Re4 {[%clk 0:01:01.8]} 29.
Rxb6 {[%clk 0:01:05.4]} 29... Rxf4 {[%clk 0:00:57.5]} 30. Be2 {[%clk 0:01:03.8]}
30... Nd7 {[%clk 0:00:56.2]} 31. Rb1 {[%clk 0:00:54.2]} 31... Ne5 {[%clk
0:00:47.2]} 32. Rf1 {[%clk 0:00:52.6]} 32... Rxf1+ {[%clk 0:00:43.3]} 33. Bxf1
{[%clk 0:00:53.5]} 33... Qh4 {[%clk 0:00:40.7]} 34. Qc3 {[%clk 0:00:47.5]} 34...
Qe4 {[%clk 0:00:39.8]} 35. h3 {[%clk 0:00:44.9]} 35... h5 {[%clk 0:00:39.6]} 36.
Kf2 {[%clk 0:00:34.4]} 36... Qf4+ {[%clk 0:00:38.4]} 37. Kg1 {[%clk 0:00:31.9]}
37... h4 {[%clk 0:00:38.9]} 38. Qc2 {[%clk 0:00:28]} 38... Qe3+ {[%clk
0:00:36.7]} 39. Qf2 {[%clk 0:00:27.8]} 39... Qg5 {[%clk 0:00:33.9]} 40. Qe2
{[%clk 0:00:22.9]} 40... f5 {[%clk 0:00:33.7]} 41. Qf2 {[%clk 0:00:21.9]} 41...
Kf6 {[%clk 0:00:33.6]} 42. Qb2 {[%clk 0:00:20.6]} 42... Qe3+ {[%clk 0:00:32.1]}
43. Kh1 {[%clk 0:00:17.3]} 43... Kg5 {[%clk 0:00:25.5]} 44. Qb8 {[%clk
0:00:09.4]} 44... Qe1 {[%clk 0:00:22.9]} 45. Kg1 {[%clk 0:00:05.5]} 45... Nxc4
{[%clk 0:00:18.6]} 46. Qd8+ {[%clk 0:00:02.3]} 46... Kf4 {[%clk 0:00:19]} 47.
Qf6 {[%clk 0:00:02.4]} 47... g5 {[%clk 0:00:08.7]} 48. Qh6 {[%clk 0:00:02.3]}
48... Nd2 {[%clk 0:00:04.9]} 49. Qxd6+ {[%clk 0:00:01.8]} 49... Qe5 {[%clk
0:00:05.3]} 50. Qxe5+ {[%clk 0:00:02]} 50... Kxe5 {[%clk 0:00:06.2]} 51. d6
{[%clk 0:00:02.9]} 51... Kxd6 {[%clk 0:00:06.2]} 52. Bd3 {[%clk 0:00:03.8]}
52... Ke5 {[%clk 0:00:06]} 53. Kf2 {[%clk 0:00:04.7]} 53... Ne4+ {[%clk
0:00:05.4]} 54. Ke3 {[%clk 0:00:04.9]} 54... Nd6 {[%clk 0:00:06]} 55. Bc2 {[%clk
0:00:05.8]} 55... c4 {[%clk 0:00:05.5]} 56. Kf3 {[%clk 0:00:06.7]} 56... Nb5
{[%clk 0:00:05.7]} 57. Bb1 {[%clk 0:00:06.8]} 57... Na3 {[%clk 0:00:05.1]} 58.
Ke3 {[%clk 0:00:07.7]} 58... Nxb1 {[%clk 0:00:05.3]} 0-1

[Event "*** Titled Tuesday Blitz"]
[Site "Chess.com"]
[Date "2021.02.02"]
[Round "2"]
[White "TimKett"]
[Black "realmadridtv"]
[Result "1-0"]
[WhiteElo "2188"]
[BlackElo "2401"]
[TimeControl "180+1"]
[EndTime "10:21:05 PST"]
[Termination "TimKett won by checkmate"]

1. e4 {[%clk 0:03:00.9]} 1... e5 {[%clk 0:02:59]} 2. f4 {[%clk 0:02:59.9]} 2...
d5 {[%clk 0:02:57.9]} 3. exd5 {[%clk 0:02:59.3]} 3... exf4 {[%clk 0:02:58.5]} 4.
Nf3 {[%clk 0:02:58.5]} 4... Nf6 {[%clk 0:02:59]} 5. Nc3 {[%clk 0:02:58.3]} 5...
Bb4 {[%clk 0:02:56.7]} 6. Qe2+ {[%clk 0:02:40.9]} 6... Kf8 {[%clk 0:02:46.7]} 7.
Qc4 {[%clk 0:02:05.5]} 7... Na6 {[%clk 0:02:38.4]} 8. Be2 {[%clk 0:02:00.7]}
8... c6 {[%clk 0:02:22.3]} 9. dxc6 {[%clk 0:01:56.1]} 9... Qb6 {[%clk 0:02:20]}
10. Qxf4 {[%clk 0:01:50.1]} 10... Bg4 {[%clk 0:02:13.1]} 11. d4 {[%clk 0:01:42]}
11... Bxc3+ {[%clk 0:02:05.7]} 12. bxc3 {[%clk 0:01:41.4]} 12... Re8 {[%clk
0:02:04.8]} 13. Be3 {[%clk 0:01:30.7]} 13... Qxc6 {[%clk 0:01:45]} 14. c4 {[%clk
0:01:21.6]} 14... Qe6 {[%clk 0:01:35.4]} 15. Ne5 {[%clk 0:01:13.8]} 15... Bxe2
{[%clk 0:01:34.2]} 16. Kxe2 {[%clk 0:01:14.1]} 16... Nh5 {[%clk 0:01:24.7]} 17.
Qg4 {[%clk 0:01:09.6]} 17... f6 {[%clk 0:01:06.7]} 18. Qxh5 {[%clk 0:01:06.6]}
18... fxe5 {[%clk 0:01:05.2]} 19. Rhf1+ {[%clk 0:01:05.9]} 19... Kg8 {[%clk
0:01:05.6]} 20. d5 {[%clk 0:01:02.6]} 20... Qd7 {[%clk 0:00:58.6]} 21. Rab1
{[%clk 0:01:00]} 21... b6 {[%clk 0:00:52.3]} 22. c5 {[%clk 0:00:53.3]} 22... g6
{[%clk 0:00:38.5]} 23. Qf3 {[%clk 0:00:41]} 23... Nxc5 {[%clk 0:00:31]} 24. Bxc5
{[%clk 0:00:39.8]} 24... bxc5 {[%clk 0:00:31.9]} 25. c4 {[%clk 0:00:35.6]} 25...
Qg7 {[%clk 0:00:21.1]} 26. d6 {[%clk 0:00:32.3]} 26... e4 {[%clk 0:00:20.6]} 27.
Qf6 {[%clk 0:00:31.9]} 27... Qxf6 {[%clk 0:00:19.6]} 28. Rxf6 {[%clk 0:00:31.3]}
28... Kg7 {[%clk 0:00:20.5]} 29. Rf4 {[%clk 0:00:25.2]} 29... Re6 {[%clk
0:00:20.5]} 30. Rb7+ {[%clk 0:00:23.9]} 30... Kh6 {[%clk 0:00:21]} 31. d7 {[%clk
0:00:22.2]} 31... Kg5 {[%clk 0:00:19.7]} 32. g3 {[%clk 0:00:21.6]} 32... Rd8
{[%clk 0:00:19.5]} 33. h4+ {[%clk 0:00:19]} 33... Kh6 {[%clk 0:00:19.7]} 34. Ke3
{[%clk 0:00:18]} 34... Re7 {[%clk 0:00:18.8]} 35. Rxe4 {[%clk 0:00:14.1]} 35...
Rexd7 {[%clk 0:00:18.2]} 36. Rxd7 {[%clk 0:00:13.4]} 36... Rxd7 {[%clk
0:00:19.1]} 37. Re5 {[%clk 0:00:11.8]} 37... Rd6 {[%clk 0:00:16.9]} 38. Rxc5
{[%clk 0:00:11.5]} 38... Ra6 {[%clk 0:00:17.6]} 39. Rc7 {[%clk 0:00:10.6]} 39...
Rxa2 {[%clk 0:00:16.8]} 40. Kf4 {[%clk 0:00:10.9]} 40... Ra1 {[%clk 0:00:12.7]}
41. g4 {[%clk 0:00:09.2]} 41... Rf1+ {[%clk 0:00:12.8]} 42. Ke5 {[%clk
0:00:09.3]} 42... g5 {[%clk 0:00:05.6]} 43. h5 {[%clk 0:00:09.1]} 43... Re1+
{[%clk 0:00:04.3]} 44. Kd6 {[%clk 0:00:08.3]} 44... Rd1+ {[%clk 0:00:04.6]} 45.
Ke6 {[%clk 0:00:08]} 45... Rd4 {[%clk 0:00:04.6]} 46. c5 {[%clk 0:00:07.5]}
46... Rxg4 {[%clk 0:00:04.4]} 47. c6 {[%clk 0:00:07.2]} 47... Re4+ {[%clk
0:00:05]} 48. Kd5 {[%clk 0:00:06.5]} 48... Rf4 {[%clk 0:00:05.1]} 49. Rxa7
{[%clk 0:00:06.3]} 49... Kxh5 {[%clk 0:00:06]} 50. c7 {[%clk 0:00:06.2]} 50...
Rf5+ {[%clk 0:00:05.3]} 51. Ke6 {[%clk 0:00:05.4]} 51... Rf8 {[%clk 0:00:05.9]}
52. Ke7 {[%clk 0:00:04.5]} 52... Rh8 {[%clk 0:00:05.7]} 53. Kd7 {[%clk
0:00:03.6]} 53... Kh4 {[%clk 0:00:05.9]} 54. c8=Q {[%clk 0:00:03.8]} 54... Rxc8
{[%clk 0:00:06.6]} 55. Kxc8 {[%clk 0:00:04.4]} 55... h5 {[%clk 0:00:07.3]} 56.
Kd7 {[%clk 0:00:03.9]} 56... g4 {[%clk 0:00:08.2]} 57. Ke6 {[%clk 0:00:04.3]}
57... g3 {[%clk 0:00:08.6]} 58. Kf5 {[%clk 0:00:04.6]} 58... g2 {[%clk
0:00:08.1]} 59. Rg7 {[%clk 0:00:05.2]} 59... Kh3 {[%clk 0:00:07.9]} 60. Kf4
{[%clk 0:00:05.5]} 60... h4 {[%clk 0:00:08.5]} 61. Kf3 {[%clk 0:00:05.3]} 61...
Kh2 {[%clk 0:00:08.4]} 62. Rxg2+ {[%clk 0:00:05.8]} 62... Kh3 {[%clk 0:00:08.2]}
63. Rg4 {[%clk 0:00:05.3]} 63... Kh2 {[%clk 0:00:07.3]} 64. Rxh4+ {[%clk
0:00:05.8]} 64... Kg1 {[%clk 0:00:07.7]} 65. Rh6 {[%clk 0:00:06.3]} 65... Kf1
{[%clk 0:00:06.6]} 66. Rh1# {[%clk 0:00:06.9]} 1-0